fUST/lending_fUST_20240723
["ID","MTS","AMOUNT","RATE_DAILY","PERIOD"]
[332916164,1721677859597,-278.63,0.00016438,2]
[332916165,1721677859608,-500.0,0.00016438,2]
[332916166,1721677859618,-500.0,0.00016438,2]
[332916167,1721677859628,-355.8,0.00016438,2]
[332916168,1721677859638,-500.0,0.00016438,2]
[332916169,1721677859647,-151.079315,0.00016438,2]
[332916170,1721677859656,-151.079315,0.00016438,2]
[332916171,1721677859666,-500.0,0.00016438,2]
[332916172,1721677859675,-163.4,0.00016438,2]
[332916173,1721677859684,-416.9,0.00016438,2]
[332916174,1721677859697,-500.0,0.00016438,2]
[332916175,1721677859707,-166.666666,0.00016438,2]
[332916176,1721677859716,-153.0,0.00016438,2]
[332916177,1721677859725,-1000.0,0.00016455,2]
[332916178,1721677859735,-1000.0,0.00016569,2]
[332916179,1721677859744,-600.0,0.0001657,2]
[332916180,1721677859753,-150.112233,0.000166,4]
[332916181,1721677859763,-1455.55,0.00016712,2]
[332916182,1721677859771,-943.09,0.00016712,2]
[332916183,1721677859780,-151.0,0.00016712,2]
[332916184,1721677859789,-151.0,0.00016712,2]
[332916185,1721677859799,-500.0,0.00016712,2]
[332916186,1721677859808,-500.0,0.00016712,2]
[332916187,1721677859817,-1706.61,0.00016712,2]
[332916188,1721677859826,-2150.23,0.00016712,2]
[332916189,1721677859835,-1278.69,0.00016712,2]
[332916190,1721677859843,-500.0,0.00016712,2]
[332916191,1721677859853,-820.8,0.00016712,2]
[332916192,1721677859865,-500.0,0.00016712,2]
[332916193,1721677859875,-981.53,0.00016712,2]
[332916194,1721677859884,-615.82,0.00016712,2]
[332916195,1721677859894,-500.0,0.00016712,2]
[332916196,1721677859904,-500.0,0.00016712,2]
[332916197,1721677859914,-500.0,0.00016712,2]
[332916198,1721677859923,-416.82,0.00016712,2]
[332916199,1721677859932,-500.0,0.00016712,2]
[332916200,1721677859948,-500.0,0.00016712,2]
[332916201,1721677859960,-500.0,0.00016712,2]
[332916202,1721677859969,-500.0,0.00016712,2]
[332916203,1721677859979,-500.0,0.00016712,2]
[332916204,1721677859989,-500.0,0.00016712,2]
[332916205,1721677859999,-500.0,0.00016712,2]
[332916206,1721677860009,-526.67,0.00016712,2]
[332916207,1721677860019,-500.0,0.00016712,2]
[332916208,1721677860029,-500.0,0.00016712,2]
[332916209,1721677860039,-500.0,0.00016712,2]
[332916210,1721677860048,-500.0,0.00016712,2]
[332916211,1721677860058,-500.0,0.00016712,2]
[332916212,1721677860067,-579.34,0.00016712,2]
[332916213,1721677860077,-500.0,0.00016712,2]
[332916214,1721677860086,-500.0,0.00016712,2]
[332916215,1721677860095,-500.0,0.00016712,2]
[332916216,1721677860104,-500.0,0.00016712,2]
[332916217,1721677860114,-500.0,0.00016712,2]
[332916218,1721677860123,-500.0,0.00016712,2]
[332916219,1721677860132,-500.0,0.00016712,2]
[332916220,1721677860142,-163.4,0.00016712,2]
[332916221,1721677860151,-416.9,0.00016712,2]
[332916222,1721677860161,-3359.62228768,0.00016721,2]
[332916223,1721677860171,-166.666666,0.00016823,2]
[332916224,1721677860182,-1000.0,0.00016941,2]
[332916225,1721677860195,-1455.55,0.00016986,2]
[332916226,1721677860206,-943.09,0.00016986,2]
[332916227,1721677860215,-151.0,0.00016986,2]
[332916228,1721677860225,-151.0,0.00016986,2]
[332916229,1721677860235,-500.0,0.00016986,2]
[332916230,1721677860246,-500.0,0.00016986,2]
[332916231,1721677860255,-1706.61,0.00016986,2]
[332916232,1721677860265,-2150.23,0.00016986,2]
[332916233,1721677860274,-1278.69,0.00016986,2]
[332916234,1721677860283,-500.0,0.00016986,2]
[332916235,1721677860292,-820.8,0.00016986,2]
[332916236,1721677860302,-500.0,0.00016986,2]
[332916237,1721677860311,-981.53,0.00016986,2]
[332916238,1721677860321,-615.82,0.00016986,2]
[332916239,1721677860330,-500.0,0.00016986,2]
[332916240,1721677860339,-500.0,0.00016986,2]
[332916241,1721677860349,-500.0,0.00016986,2]
[332916242,1721677860358,-404.36,0.00016986,2]
[332916243,1721677860368,-500.0,0.00016986,2]
[332916244,1721677860378,-500.0,0.00016986,2]
[332916245,1721677860387,-500.0,0.00016986,2]
[332916246,1721677860397,-500.0,0.00016986,2]
[332916247,1721677860408,-500.0,0.00016986,2]
[332916248,1721677860417,-500.0,0.00016986,2]
[332916249,1721677860426,-526.67,0.00016986,2]
[332916250,1721677860436,-500.0,0.00016986,2]
[332916251,1721677860447,-500.0,0.00016986,2]
[332916252,1721677860457,-245.99,0.00016986,2]
[332916253,1721677860467,-500.0,0.00016986,2]
[332916254,1721677860477,-500.0,0.00016986,2]
[332916255,1721677860487,-579.34,0.00016986,2]
[332916256,1721677860497,-500.0,0.00016986,2]
[332916257,1721677860508,-500.0,0.00016986,2]
[332916258,1721677860519,-500.0,0.00016986,2]
[332916259,1721677860529,-500.0,0.00016986,2]
[332916260,1721677860539,-500.0,0.00016986,2]
[332916261,1721677860549,-500.0,0.00016986,2]
[332916262,1721677860558,-500.0,0.00016986,2]
[332916263,1721677860568,-163.4,0.00016986,2]
[332916264,1721677860578,-416.9,0.00016986,2]
[332916265,1721677860588,-620.00020918,0.00017029,2]
[332916266,1721677860599,-340.67687569,0.00017044,2]
[332916267,1721677860609,-1000.0,0.00017072,2]
[332916268,1721677860618,-5235.6397363,0.00017115,2]
[332916269,1721677860628,-600.0,0.00017131,2]
[332916270,1721677860638,-1000.0,0.00017163,2]
[332916271,1721677860648,-166.666666,0.00017208,2]
[332916272,1721677860657,-1974.26871048,0.0001726,2]
[332916273,1721677860667,-763.56,0.0001726,2]
[332916274,1721677860676,-4482.68,0.0001726,2]
[332916275,1721677860686,-638.5,0.0001726,2]
[332916276,1721677860698,-644.61,0.0001726,2]
[332916277,1721677860707,-850.61,0.0001726,2]
[332916278,1721677860717,-648.14,0.0001726,2]
[332916279,1721677860726,-2313.44,0.0001726,2]
[332916280,1721677860736,-1229.93,0.0001726,2]
[332916281,1721677860746,-6955.44,0.0001726,2]
[332916282,1721677860755,-500.0,0.0001726,2]
[332916283,1721677860765,-5865.42,0.0001726,2]
[332916284,1721677860774,-500.0,0.0001726,2]
[332916285,1721677860784,-877.65,0.0001726,2]
[332916286,1721677860794,-500.0,0.0001726,2]
[332916287,1721677860804,-831.66,0.0001726,2]
[332916288,1721677860813,-500.0,0.0001726,2]
[332916289,1721677860823,-500.0,0.0001726,2]
[332916290,1721677860833,-500.0,0.0001726,2]
[332916291,1721677860843,-539.22,0.0001726,2]
[332916292,1721677860853,-500.0,0.0001726,2]
[332916293,1721677860862,-500.0,0.0001726,2]
[332916294,1721677860884,-500.0,0.0001726,2]
[332916295,1721677861030,-455.44,0.0001726,2]
[332916296,1721677861041,-630.11,0.0001726,2]
[332916297,1721677861050,-500.0,0.0001726,2]
[332916298,1721677861060,-500.0,0.0001726,2]
[332916299,1721677861070,-500.0,0.0001726,2]
[332916300,1721677861079,-826.61,0.0001726,2]
[332916301,1721677861088,-500.0,0.0001726,2]
[332916302,1721677861098,-580.89,0.0001726,2]
[332916303,1721677861107,-500.0,0.0001726,2]
[332916304,1721677861117,-500.0,0.0001726,2]
[332916305,1721677861126,-6122.85,0.0001726,2]
[332916306,1721677861135,-500.0,0.0001726,2]
[332916307,1721677861145,-383.08,0.0001726,2]
[332916308,1721677861154,-500.0,0.0001726,2]
[332916309,1721677861163,-527.23,0.0001726,2]
[332916310,1721677861173,-1672.06,0.0001726,2]
[332916311,1721677861182,-500.0,0.0001726,2]
[332916312,1721677861194,-500.0,0.0001726,2]
[332916313,1721677861204,-950.79,0.0001726,2]
[332916314,1721677861213,-500.0,0.0001726,2]
[332916315,1721677861223,-500.0,0.0001726,2]
[332916316,1721677861232,-500.0,0.0001726,2]
[332916317,1721677861242,-1508.6,0.0001726,2]
[332916318,1721677861252,-506.88,0.0001726,2]
[332916319,1721677861262,-500.0,0.0001726,2]
[332916320,1721677861272,-500.0,0.0001726,2]
[332916321,1721677861283,-500.0,0.0001726,2]
[332916322,1721677861293,-751.93,0.0001726,2]
[332916323,1721677861303,-365.42,0.0001726,2]
[332916324,1721677861314,-500.0,0.0001726,2]
[332916325,1721677861323,-578.41,0.0001726,2]
[332916326,1721677861332,-1885.83,0.0001726,2]
[332916327,1721677861344,-840.73,0.0001726,2]
[332916328,1721677861355,-500.0,0.0001726,2]
[332916329,1721677861366,-997.89,0.0001726,2]
[332916330,1721677861378,-500.0,0.0001726,2]
[332916331,1721677861388,-1938.4,0.0001726,2]
[332916332,1721677861398,-500.0,0.0001726,2]
[332916333,1721677861408,-685.58,0.0001726,2]
[332916334,1721677861418,-500.0,0.0001726,2]
[332916335,1721677861427,-500.0,0.0001726,2]
[332916336,1721677861438,-500.0,0.0001726,2]
[332916337,1721677861449,-500.0,0.0001726,2]
[332916338,1721677861460,-1886.51,0.0001726,2]
[332916339,1721677861471,-650.38,0.0001726,2]
[332916340,1721677861482,-500.0,0.0001726,2]
[332916341,1721677861492,-500.0,0.0001726,2]
[332916342,1721677861502,-847.83,0.0001726,2]
[332916343,1721677861512,-1737.53,0.0001726,2]
[332916344,1721677861522,-3686.48,0.0001726,2]
[332916345,1721677861533,-500.0,0.0001726,2]
[332916346,1721677861543,-500.0,0.0001726,2]
[332916347,1721677861553,-500.0,0.0001726,2]
[332916348,1721677861563,-500.0,0.0001726,2]
[332916349,1721677861573,-500.0,0.0001726,2]
[332916350,1721677861582,-500.0,0.0001726,2]
[332916351,1721677861592,-574.16,0.0001726,2]
[332916352,1721677861601,-500.0,0.0001726,2]
[332916353,1721677861610,-326.14,0.0001726,2]
[332916354,1721677861620,-413.11,0.0001726,2]
[332916355,1721677861630,-500.0,0.0001726,2]
[332916356,1721677861640,-765.21,0.0001726,2]
[332916357,1721677861649,-500.0,0.0001726,2]
[332916358,1721677861662,-1455.55,0.0001726,2]
[332916359,1721677861672,-943.09,0.0001726,2]
[332916360,1721677861683,-151.0,0.0001726,2]
[332916361,1721677861694,-500.0,0.0001726,2]
[332916362,1721677861705,-500.0,0.0001726,2]
[332916363,1721677861714,-1706.61,0.0001726,2]
[332916364,1721677861724,-2150.23,0.0001726,2]
[332916365,1721677861733,-1278.69,0.0001726,2]
[332916366,1721677861743,-500.0,0.0001726,2]
[332916367,1721677861753,-820.8,0.0001726,2]
[332916368,1721677861763,-500.0,0.0001726,2]
[332916369,1721677861773,-981.53,0.0001726,2]
[332916370,1721677861783,-615.82,0.0001726,2]
[332916371,1721677861793,-500.0,0.0001726,2]
[332916372,1721677861803,-500.0,0.0001726,2]
[332916373,1721677861814,-378.88,0.0001726,2]
[332916374,1721677861825,-500.0,0.0001726,2]
[332916375,1721677861835,-500.0,0.0001726,2]
[332916376,1721677861845,-500.0,0.0001726,2]
[332916377,1721677861855,-500.0,0.0001726,2]
[332916378,1721677861869,-487.45164326,0.0001726,2]
[332916379,1721677861883,-526.67,0.0001726,2]
[332916380,1721677861892,-500.0,0.0001726,2]
[332916381,1721677861904,-500.0,0.0001726,2]
[332916382,1721677861916,-500.0,0.0001726,2]
[332916383,1721677861926,-500.0,0.0001726,2]
[332916384,1721677861936,-579.34,0.0001726,2]
[332916385,1721677861951,-500.0,0.0001726,2]
[332916386,1721677861963,-500.0,0.0001726,2]
[332916387,1721677861973,-500.0,0.0001726,2]
[332916388,1721677861984,-500.0,0.0001726,2]
[332916389,1721677861994,-500.0,0.0001726,2]
[332916390,1721677862006,-151.079315,0.0001726,2]
[332916391,1721677862016,-500.0,0.0001726,2]
[332916392,1721677862027,-151.079315,0.0001726,2]
[332916393,1721677862038,-598.13,0.0001726,2]
[332916394,1721677862048,-163.4,0.0001726,2]
[332916395,1721677862058,-416.9,0.0001726,2]
[332916396,1721677862067,-206.6425332,0.0001726,2]
[332916397,1721677862077,-153.0,0.0001726,2]
[332916398,1721677862087,-206.6425332,0.0001726,2]
[332916399,1721677862097,-206.6425332,0.0001726,2]
[332916400,1721677862107,-153.0,0.0001726,2]
[332916401,1721677862117,-206.6425332,0.0001726,2]
[332916402,1721677862126,-206.6425332,0.0001726,2]
[332916403,1721677862137,-153.0,0.0001726,2]
[332916404,1721677862147,-153.0,0.0001726,2]
[332916405,1721677862158,-306.0,0.0001726,2]
[332916406,1721677862169,-1770.65,0.00017351,2]
[332916407,1721677862181,-1100.38,0.00017351,2]
[332916408,1721677862191,-500.0,0.00017351,2]
[332916409,1721677862201,-178.68,0.00017351,2]
[332916410,1721677862211,-600.0,0.00017381,2]
[332916411,1721677862221,-53064.15054415,0.00017402,2]
[332916412,1721677862230,-500.0,0.00017423,2]
[332916413,1721677862240,-150.0,0.00017472,2]
[332916414,1721677862250,-505.0,0.00017472,2]
[332916415,1721677862260,-1409.0,0.00017472,2]
[332916416,1721677862269,-1000.0,0.000175,2]
[332916417,1721677862279,-659.88,0.00017507,2]
[332916418,1721677862290,-627.65,0.00017507,2]
[332916419,1721677862300,-151.0,0.00017507,2]
[332916420,1721677862310,-244.231556,0.00017507,2]
[332916421,1721677862320,-224.75,0.00017516,2]
[332916422,1721677862329,-500.0,0.00017516,2]
[332916423,1721677862340,-500.0,0.00017516,2]
[332916424,1721677862351,-500.0,0.00017516,2]
[332916425,1721677862362,-500.0,0.00017516,2]
[332916426,1721677862372,-500.0,0.00017516,2]
[332916427,1721677862382,-500.0,0.00017516,2]
[332916428,1721677862393,-510.64,0.00017523,2]
[332916429,1721677862404,-594.45,0.00017523,2]
[332916430,1721677862414,-500.0,0.00017523,2]
[332916431,1721677862424,-151.0,0.00017523,2]
[332916432,1721677862434,-500.0,0.00017524,2]
[332916433,1721677862446,-500.0,0.00017524,2]
[332916434,1721677862455,-500.0,0.00017524,2]
[332916435,1721677862464,-539.22,0.00017533,2]
[332916436,1721677862474,-500.0,0.00017533,2]
[332916437,1721677862483,-2184.75,0.00017533,2]
[332916438,1721677862493,-1529.76,0.00017533,2]
[332916439,1721677862504,-598.51,0.00017533,2]
[332916440,1721677862515,-500.0,0.00017533,2]
[332916441,1721677862526,-500.0,0.00017533,2]
[332916442,1721677862536,-500.0,0.00017533,2]
[332916443,1721677862547,-500.0,0.00017533,2]
[332916444,1721677862557,-500.0,0.00017533,2]
[332916445,1721677862567,-500.0,0.00017533,2]
[332916446,1721677862577,-500.0,0.00017533,2]
[332916447,1721677862587,-620.7,0.00017533,2]
[332916448,1721677862598,-500.0,0.00017533,2]
[332916449,1721677862609,-500.0,0.00017533,2]
[332916450,1721677862620,-500.0,0.00017534,2]
[332916451,1721677862630,-500.0,0.00017534,2]
[332916452,1721677862641,-683.88,0.00017534,2]
[332916453,1721677862652,-2306.83,0.00017534,2]
[332916454,1721677862662,-500.0,0.00017534,2]
[332916455,1721677862765,-589.8506217,0.00017534,2]
[332916456,1721677862775,-539.84,0.00017534,2]
[332916457,1721677862786,-2033.74,0.00017534,2]
[332916458,1721677862795,-500.0,0.00017534,2]
[332916459,1721677862804,-500.0,0.00017534,2]
[332916460,1721677862813,-500.0,0.00017534,2]
[332916461,1721677862822,-1177.69,0.00017534,2]
[332916462,1721677862832,-735.43,0.00017534,2]
[332916463,1721677862841,-554.94,0.00017534,2]
[332916464,1721677862851,-500.0,0.00017534,2]
[332916465,1721677862862,-549.02,0.00017534,2]
[332916466,1721677862873,-1031.38,0.00017534,2]
[332916467,1721677862883,-500.0,0.00017534,2]
[332916468,1721677862892,-714.38,0.00017534,2]
[332916469,1721677862903,-192.56463948,0.00017534,2]
[332916470,1721677862912,-505.12,0.00017534,2]
[332916471,1721677862921,-1365.28,0.00017534,2]
[332916472,1721677862930,-647.07,0.00017534,2]
[332916473,1721677862941,-589.48,0.00017534,2]
[332916474,1721677862954,-500.0,0.00017534,2]
[332916475,1721677862964,-768.59,0.00017534,2]
[332916476,1721677862974,-647.55,0.00017534,2]
[332916477,1721677862982,-500.0,0.00017534,2]
[332916478,1721677862994,-953.2,0.00017534,2]
[332916479,1721677863003,-500.0,0.00017534,2]
[332916480,1721677863013,-874.1,0.00017534,2]
[332916481,1721677863023,-519.25,0.00017534,2]
[332916482,1721677863036,-884.66,0.00017534,2]
[332916483,1721677863046,-1057.52,0.00017534,2]
[332916484,1721677863056,-1889.7,0.00017534,2]
[332916485,1721677863065,-500.0,0.00017534,2]
[332916486,1721677863077,-1132.04,0.00017534,2]
[332916487,1721677863087,-666.49,0.00017534,2]
[332916488,1721677863098,-668.28,0.00017534,2]
[332916489,1721677863107,-500.0,0.00017534,2]
[332916490,1721677863117,-1624.09,0.00017534,2]
[332916491,1721677863126,-976.27,0.00017534,2]
[332916492,1721677863136,-642.19,0.00017534,2]
[332916493,1721677863145,-552.84,0.00017534,2]
[332916494,1721677863155,-837.86,0.00017534,2]
[332916495,1721677863165,-838.14,0.00017534,2]
[332916496,1721677863175,-2035.58,0.00017534,2]
[332916497,1721677863185,-554.09,0.00017534,2]
[332916498,1721677863196,-500.0,0.00017534,2]
[332916499,1721677863205,-1328.22,0.00017534,2]
[332916500,1721677863214,-500.0,0.00017534,2]
[332916501,1721677863224,-506.13,0.00017534,2]
[332916502,1721677863233,-1470.26,0.00017534,2]
[332916503,1721677863242,-2054.5,0.00017534,2]
[332916504,1721677863251,-628.44,0.00017534,2]
[332916505,1721677863261,-160.52958731,0.00017534,2]
[332916506,1721677863270,-500.0,0.00017534,2]
[332916507,1721677863280,-700.9,0.00017534,2]
[332916508,1721677863290,-630.92,0.00017534,2]
[332916509,1721677863300,-1078.09,0.00017534,2]
[332916510,1721677863309,-816.07,0.00017534,2]
[332916511,1721677863319,-500.0,0.00017534,2]
[332916512,1721677863329,-627.68,0.00017534,2]
[332916513,1721677863339,-604.38,0.00017534,2]
[332916514,1721677863349,-649.28,0.00017534,2]
[332916515,1721677863359,-2006.04,0.00017534,2]
[332916516,1721677863369,-500.0,0.00017534,2]
[332916517,1721677863378,-500.0,0.00017534,2]
[332916518,1721677863387,-527.61,0.00017534,2]
[332916519,1721677863397,-500.0,0.00017534,2]
[332916520,1721677863408,-500.0,0.00017534,2]
[332916521,1721677863417,-666.18,0.00017534,2]
[332916522,1721677863427,-859.08,0.00017534,2]
[332916523,1721677863436,-3069.31,0.00017534,2]
[332916524,1721677863446,-500.0,0.00017534,2]
[332916525,1721677863455,-500.0,0.00017534,2]
[332916526,1721677863466,-1517.82,0.00017534,2]
[332916527,1721677863475,-1176.08,0.00017534,2]
[332916528,1721677863484,-500.0,0.00017534,2]
[332916529,1721677863494,-500.0,0.00017534,2]
[332916530,1721677863513,-500.0,0.00017534,2]
[332916531,1721677863532,-1445.42,0.00017534,2]
[332916532,1721677863548,-500.0,0.00017534,2]
[332916533,1721677863566,-272.02532838,0.00017534,2]
[332916534,1721677863585,-2045.09,0.00017534,2]
[332916535,1721677863604,-771.46,0.00017534,2]
[332916536,1721677863619,-500.0,0.00017534,2]
[332916537,1721677863638,-500.0,0.00017534,2]
[332916538,1721677863651,-930.2,0.00017534,2]
[332916539,1721677863665,-684.13,0.00017534,2]
[332916540,1721677863682,-500.0,0.00017534,2]
[332916541,1721677863699,-687.94,0.00017534,2]
[332916542,1721677863717,-1866.61,0.00017534,2]
[332916543,1721677863730,-1337.16,0.00017534,2]
[332916544,1721677863743,-565.6,0.00017534,2]
[332916545,1721677863761,-561.68,0.00017534,2]
[332916546,1721677863776,-723.1,0.00017534,2]
[332916547,1721677863793,-500.0,0.00017534,2]
[332916548,1721677863807,-1520.82,0.00017534,2]
[332916549,1721677863822,-1951.93,0.00017534,2]
[332916550,1721677863837,-2114.25,0.00017534,2]
[332916551,1721677863851,-500.0,0.00017534,2]
[332916552,1721677863865,-1164.77,0.00017534,2]
[332916553,1721677863883,-1320.34,0.00017534,2]
[332916554,1721677863897,-744.8,0.00017534,2]
[332916555,1721677863912,-1724.01,0.00017534,2]
[332916556,1721677863928,-1333.01,0.00017534,2]
[332916557,1721677863943,-504.86,0.00017534,2]
[332916558,1721677863957,-531.31,0.00017534,2]
[332916559,1721677863973,-2564.77,0.00017534,2]
[332916560,1721677863989,-503.98,0.00017534,2]
[332916561,1721677864004,-1473.72,0.00017534,2]
[332916562,1721677864018,-500.0,0.00017534,2]
[332916563,1721677864031,-579.86,0.00017534,2]
[332916564,1721677864049,-674.71,0.00017534,2]
[332916565,1721677864063,-1005.89,0.00017534,2]
[332916566,1721677864077,-500.0,0.00017534,2]
[332916567,1721677864090,-500.0,0.00017534,2]
[332916568,1721677864103,-1341.62,0.00017534,2]
[332916569,1721677864117,-1204.73,0.00017534,2]
[332916570,1721677864132,-12941.36,0.00017534,2]
[332916571,1721677864145,-1907.18,0.00017534,2]
[332916572,1721677864159,-500.0,0.00017534,2]
[332916573,1721677864172,-3689.8,0.00017534,2]
[332916574,1721677864185,-500.0,0.00017534,2]
[332916575,1721677864200,-3041.94,0.00017534,2]
[332916576,1721677864214,-1624.15,0.00017534,2]
[332916577,1721677864227,-1054.8,0.00017534,2]
[332916578,1721677864241,-2090.47,0.00017534,2]
[332916579,1721677864254,-1806.74,0.00017534,2]
[332916580,1721677864267,-2202.13,0.00017534,2]
[332916581,1721677864280,-500.0,0.00017534,2]
[332916582,1721677864294,-4016.4,0.00017534,2]
[332916583,1721677864308,-2213.48,0.00017534,2]
[332916584,1721677864323,-500.0,0.00017534,2]
[332916585,1721677864338,-500.0,0.00017534,2]
[332916586,1721677864351,-500.0,0.00017534,2]
[332916587,1721677864365,-2197.7,0.00017534,2]
[332916588,1721677864379,-1723.55,0.00017534,2]
[332916589,1721677864393,-500.0,0.00017534,2]
[332916590,1721677864407,-5397.5,0.00017534,2]
[332916591,1721677864421,-652.01,0.00017534,2]
[332916592,1721677864434,-1092.54,0.00017534,2]
[332916593,1721677864450,-993.63,0.00017534,2]
[332916594,1721677864463,-917.62,0.00017534,2]
[332916595,1721677864476,-500.0,0.00017534,2]
[332916596,1721677864492,-716.45,0.00017534,2]
[332916597,1721677864507,-4132.02,0.00017534,2]
[332916598,1721677864523,-500.0,0.00017534,2]
[332916599,1721677864538,-2222.11,0.00017534,2]
[332916600,1721677864551,-935.93,0.00017534,2]
[332916601,1721677864562,-818.39,0.00017534,2]
[332916602,1721677864571,-7400.98,0.00017534,2]
[332916603,1721677864765,-498.41566839,0.00017534,2]
[332916604,1721677864776,-930.77,0.00017534,2]
[332916605,1721677864786,-734.72,0.00017534,2]
[332916606,1721677864796,-500.0,0.00017534,2]
[332916607,1721677864805,-500.0,0.00017534,2]
[332916608,1721677864815,-1669.97,0.00017534,2]
[332916609,1721677864824,-850.61,0.00017534,2]
[332916610,1721677864834,-552.12,0.00017534,2]
[332916611,1721677864844,-150.41173722,0.00017534,2]
[332916612,1721677864854,-930.18,0.00017534,2]
[332916613,1721677864864,-500.0,0.00017534,2]
[332916614,1721677864878,-1082.74,0.00017534,2]
[332916615,1721677864887,-1077.15,0.00017534,2]
[332916616,1721677864897,-2665.28,0.00017534,2]
[332916617,1721677864907,-1492.38,0.00017534,2]
[332916618,1721677864917,-500.0,0.00017534,2]
[332916619,1721677864927,-1378.02,0.00017534,2]
[332916620,1721677864937,-1450.96,0.00017534,2]
[332916621,1721677864951,-500.0,0.00017534,2]
[332916622,1721677864961,-500.0,0.00017534,2]
[332916623,1721677864970,-559.28,0.00017534,2]
[332916624,1721677864979,-776.21,0.00017534,2]
[332916625,1721677864991,-508.21,0.00017534,2]
[332916626,1721677865000,-722.53,0.00017534,2]
[332916627,1721677865010,-1011.22,0.00017534,2]
[332916628,1721677865019,-500.0,0.00017534,2]
[332916629,1721677865028,-521.74,0.00017534,2]
[332916630,1721677865037,-1744.99,0.00017534,2]
[332916631,1721677865047,-1538.99,0.00017534,2]
[332916632,1721677865056,-10125.34,0.00017534,2]
[332916633,1721677865065,-923.66,0.00017534,2]
[332916634,1721677865075,-767.77,0.00017534,2]
[332916635,1721677865084,-4491.18,0.00017534,2]
[332916636,1721677865094,-1883.32,0.00017534,2]
[332916637,1721677865103,-556.62,0.00017534,2]
[332916638,1721677865112,-208.22625167,0.00017534,2]
[332916639,1721677865122,-500.0,0.00017534,2]
[332916640,1721677865131,-710.76,0.00017534,2]
[332916641,1721677865140,-3281.33,0.00017534,2]
[332916642,1721677865149,-763.56,0.00017534,2]
[332916643,1721677865158,-4482.68,0.00017534,2]
[332916644,1721677865167,-638.5,0.00017534,2]
[332916645,1721677865176,-644.61,0.00017534,2]
[332916646,1721677865186,-850.61,0.00017534,2]
[332916647,1721677865197,-648.14,0.00017534,2]
[332916648,1721677865206,-2313.44,0.00017534,2]
[332916649,1721677865215,-1229.93,0.00017534,2]
[332916650,1721677865225,-6955.44,0.00017534,2]
[332916651,1721677865234,-500.0,0.00017534,2]
[332916652,1721677865243,-5865.42,0.00017534,2]
[332916653,1721677865253,-500.0,0.00017534,2]
[332916654,1721677865262,-877.65,0.00017534,2]
[332916655,1721677865271,-500.0,0.00017534,2]
[332916656,1721677865280,-831.66,0.00017534,2]
[332916657,1721677865289,-500.0,0.00017534,2]
[332916658,1721677865298,-400.98,0.00017534,2]
[332916659,1721677865307,-500.0,0.00017534,2]
[332916660,1721677865317,-539.22,0.00017534,2]
[332916661,1721677865326,-500.0,0.00017534,2]
[332916662,1721677865335,-500.0,0.00017534,2]
[332916663,1721677865344,-455.44,0.00017534,2]